bitfinex-derivatives/quotes_ETHF0:USTF0_20250427
["timestamp","ask_amount","ask_price","bid_price","bid_amount"]
[1745750933464,6.7538,1809.4,1809.3,6.44625]
[1745750934265,3.2078,1809.4,1809.3,6.44625]
[1745750939766,4.64603,1809.5,1809.4,1.10509]
[1745750939966,3.541,1809.5,1809.4,3.56119]
[1745750940161,4.64603,1809.5,1809.4,6.1781]
[1745750940465,4.64603,1809.5,1809.4,7.28319]
[1745750941772,1.10503,1809.5,1809.4,7.28319]
[1745750942570,4.64602,1809.6,1809.5,1.10503]
[1745750942769,4.64602,1809.6,1809.5,2.70353]
[1745750943069,4.64602,1809.6,1809.5,6.42553]
[1745750943366,3.541,1809.6,1809.5,7.24383]
[1745750943671,4.0286,1809.7,1809.6,1.10497]
[1745750943868,7.5696,1809.7,1809.6,2.70347]
[1745750944773,6.7488,1809.7,1809.6,2.70347]
[1745750944970,7.85371,1809.7,1809.6,2.70347]
[1745750945271,6.7488,1809.7,1809.6,2.70347]
[1745750946175,7.85371,1809.7,1809.6,1.5985]
[1745750946662,8.70311,1809.7,1809.6,1.5985]
[1745750947272,1.10497,1809.6,1809.5,3.722]
[1745750947472,4.64597,1809.6,1809.5,3.722]
[1745750947673,4.64597,1809.6,1809.5,6.41393]
[1745750947674,3.541,1809.6,1809.5,6.41393]
[1745750948064,4.64597,1809.6,1809.5,6.41393]
[1745750948674,4.64597,1809.6,1809.5,5.3089]
[1745750949070,4.64597,1809.6,1809.5,6.41393]
[1745750949373,4.64597,1809.6,1809.5,5.3089]
[1745750950575,4.64597,1809.6,1809.5,3.722]
[1745750952375,4.6411675,1809.6,1809.5,3.722]
[1745750953977,9.6411675,1809.6,1809.5,0.67909479]
[1745750954174,1.10515,1809.3,1809.2,1.6094]
[1745750954470,3.541,1809.3,1809.2,1.6094]
[1745750955174,3.541,1809.3,1809.2,5.3314]
[1745750955478,4.64615,1809.3,1809.2,5.3314]
[1745750957076,3.541,1809.3,1809.2,6.43661]
[1745750957480,3.541,1809.3,1809.2,5.3314]
[1745750957972,3.541,1809.3,1809.2,6.43661]
[1745750958571,4.64615,1809.3,1809.2,6.43661]
[1745750958876,4.64613,1809.4,1809.2,6.43661]
[1745750959077,4.64613,1809.4,1809.3,1.72]
[1745750960079,4.64613,1809.4,1809.3,5.442]
[1745750960678,1.10513,1809.4,1809.3,5.442]
[1745750960879,1.10513,1809.4,1809.3,6.54715]
[1745750961076,4.64613,1809.4,1809.3,6.54715]
[1745750961978,4.64613,1809.4,1809.3,5.442]
[1745750962682,4.64613,1809.4,1809.3,6.54715]
[1745750963280,4.64613,1809.4,1809.3,5.442]
[1745750963880,3.541,1809.4,1809.3,6.54715]
[1745750965878,6.77421,1809.6,1809.4,1.10505]
[1745750966182,5.15701,1809.6,1809.5,0.819]
[1745750966483,8.69801,1809.6,1809.5,0.819]
[1745750966679,8.69801,1809.6,1809.5,2.4543]
[1745750967177,8.69801,1809.6,1809.5,6.1763]
[1745750967678,6.7338,1809.6,1809.5,7.28133]
[1745750967884,3.2078,1809.6,1809.5,7.28133]
[1745750968891,1.10491,1809.7,1809.6,1.10497]
[1745750969182,1.10491,1809.7,1809.6,2.75247]
[1745750970178,7.83868,1809.8,1809.7,1.10491]
[1745750970380,7.83868,1809.8,1809.7,3.58251]
[1745750971084,7.83868,1809.8,1809.7,7.30451]
[1745750972080,3.526,1809.8,1809.7,7.30451]
[1745750978891,1.10479,1809.9,1809.7,7.30451]
[1745750979185,4.63079,1809.9,1809.8,2.4288]
[1745750979689,3.526,1809.9,1809.8,3.53365]
[1745750980186,3.526,1809.9,1809.8,7.25565]
[1745750981088,5.09212,1810.1,1809.9,1.10479]
[1745750981285,3.526,1810.0,1809.9,1.10479]
[1745750982190,3.526,1810.0,1809.9,3.722]
[1745750982592,3.526,1810.0,1809.9,4.82679]
[1745750982784,3.526,1810.0,1809.9,3.722]
[1745750983290,3.526,1810.0,1809.9,4.82679]
[1745750987494,6.7501,1810.1,1809.9,4.82679]
[1745750987695,10.2751,1810.1,1809.9,4.82679]
[1745750987887,1.10472,1810.0,1809.9,3.722]
[1745750997897,1.10472,1810.0,1809.9,5.4483]
[1745751001093,1.10472,1810.0,1809.9,3.722]
[1745751001292,2.75502,1810.0,1809.9,3.722]
[1745751002197,1.10479,1809.9,1809.8,1.5905]
[1745751002400,3.57159,1809.9,1809.8,1.5905]
[1745751003097,3.57159,1809.9,1809.8,5.3125]
[1745751005003,2.4668,1809.9,1809.8,5.3125]
[1745751005303,3.57159,1809.9,1809.8,5.3125]
[1745751009508,1.92129,1809.9,1809.8,5.3125]
[1745751010007,1.10479,1809.9,1809.8,5.3125]
[1745751014416,1.10479,1809.9,1809.8,6.41735]
[1745751014923,1.10479,1809.9,1809.8,5.3125]
[1745751017627,1.10479,1809.9,1809.8,6.41735]
[1745751018527,1.10479,1809.9,1809.8,5.3125]
[1745751019027,3.2078,1810.0,1809.8,5.3125]
[1745751019227,3.2078,1810.0,1809.9,1.6338]
[1745751019430,4.31252,1810.0,1809.9,1.6338]
[1745751019630,1.10472,1810.0,1809.9,2.73859]
[1745751020128,1.10472,1810.0,1809.9,6.46059]
[1745751020330,1.10472,1810.0,1809.9,5.3558]
[1745751020933,1.10471,1810.1,1810.0,1.1047]
[1745751021120,1.10471,1810.1,1810.0,8.1553]
[1745751021431,1.10471,1810.1,1810.0,7.0506]
[1745751022233,1.10471,1810.1,1810.0,8.15532]
[1745751022631,1.10471,1810.1,1810.0,7.0506]
[1745751022933,1.10471,1810.1,1810.0,8.15532]
[1745751026433,1.10471,1810.1,1810.0,7.0506]
[1745751026836,1.10471,1810.1,1810.0,8.15532]
[1745751027139,1.10471,1810.1,1810.0,7.0506]
[1745751029035,9.2131,1810.2,1810.0,7.0506]
[1745751029335,9.2131,1810.2,1810.1,1.7038]
[1745751029635,10.3177,1810.2,1810.1,1.7038]
[1745751029835,7.1099,1810.2,1810.1,1.7038]
[1745751030039,10.3177,1810.2,1810.1,1.7038]
[1745751031736,1.10485,1809.8,1809.7,3.2078]
[1745751031941,1.10485,1809.8,1809.7,3.9942]
[1745751032140,1.10485,1809.8,1809.7,7.7162]
[1745751033041,1.10485,1809.8,1809.7,8.82111]
[1745751033241,1.10485,1809.8,1809.7,10.39251]
[1745751038749,1.10485,1809.8,1809.7,7.18471]
[1745751039046,1.22108063,1809.9,1809.8,1.10485]
[1745751039246,1.10483,1809.9,1809.8,2.79535]
[1745751040149,1.10483,1809.9,1809.8,6.51735]
[1745751042639,8.46017,1810.1,1809.9,1.10474]
[1745751042640,1.10476,1810.0,1809.9,1.10474]
[1745751042845,1.10476,1810.0,1809.9,3.50524]
[1745751043050,4.31251,1810.1,1810.0,1.10472]
[1745751043249,4.31251,1810.1,1810.0,3.61042]
[1745751043548,3.2078,1810.1,1810.0,3.61042]
[1745751044146,3.2078,1810.1,1810.0,7.33242]
[1745751047147,1.10464,1810.2,1810.1,1.10466]
[1745751047346,4.31244,1810.2,1810.1,2.81246]
[1745751048944,4.31244,1810.2,1810.1,1.7078]
[1745751049145,1.10466,1810.1,1810.0,3.722]
[1745751049350,2.5695,1810.1,1810.0,3.722]
[1745751049540,3.67416,1810.1,1810.0,3.722]
[1745751050345,1.10472,1810.0,1809.9,3.52147]
[1745751050749,3.509,1810.0,1809.7,3.2078]
[1745751050944,6.33537,1810.0,1809.8,3.51363]
[1745751051147,1.10479,1809.9,1809.8,2.4088]
[1745751051541,7.18497,1810.0,1809.9,1.10479]
[1745751051740,7.18497,1810.0,1809.9,2.69779]
[1745751052151,7.18497,1810.0,1809.9,6.41979]
[1745751053247,7.18497,1810.0,1809.9,5.315]
[1745751054047,10.39277,1810.0,1809.9,3.722]
[1745751054349,1.10485,1809.8,1809.7,0.7926]
[1745751054651,1.10485,1809.8,1809.7,2.404]
[1745751055055,1.10485,1809.8,1809.7,6.126]
[1745751055949,1.10485,1809.8,1809.7,7.23091]
[1745751059259,10.25537,1810.0,1809.7,7.23091]
[1745751059449,1.10479,1809.9,1809.8,1.6008]
[1745751060159,1.10479,1809.9,1809.8,5.3228]
[1745751061859,1.10479,1809.9,1809.8,6.42765]
[1745751064766,6.7168,1810.0,1809.9,1.10479]
[1745751064960,6.7168,1810.0,1809.9,3.51719]
[1745751064961,7.82152,1810.0,1809.9,3.51719]
[1745751065260,7.82152,1810.0,1809.9,3.722]
[1745751065563,7.82152,1810.0,1809.9,6.44529]
[1745751066662,6.7168,1810.0,1809.9,6.44529]
[1745751066850,4.61372,1810.0,1809.9,6.44529]
[1745751069353,3.95063718,1810.0,1809.9,6.44529]
[1745751072064,7.82129,1810.4,1810.3,1.10454]
[1745751072364,3.2078,1810.4,1810.3,1.10454]
[1745751073270,3.2078,1810.4,1810.3,8.06514]
[1745751075967,1.1044,1810.6,1810.5,1.10442]
[1745751077074,1.1044,1810.6,1810.5,4.82642]
[1745751077970,10.29294,1810.7,1810.6,1.10436]
[1745751078171,10.29294,1810.7,1810.6,2.69756]
[1745751078873,7.08514,1810.7,1810.6,2.69756]
[1745751079175,10.29294,1810.7,1810.6,2.69756]
[1745751079571,10.29294,1810.7,1810.6,1.5932]
[1745751081779,7.08514,1810.7,1810.6,1.5932]
[1745751081969,10.29294,1810.7,1810.6,1.5932]
[1745751082575,7.08514,1810.7,1810.6,1.5932]
[1745751082975,7.08514,1810.7,1810.6,2.69756]
[1745751084474,7.08514,1810.7,1810.6,1.5932]
[1745751085085,7.08514,1810.7,1810.6,2.69756]
[1745751085580,5.9808,1810.7,1810.6,2.69756]
[1745751086179,3.509,1810.7,1810.6,1.5932]
[1745751086379,5.0807,1810.8,1810.7,1.10426]
[1745751086575,3.508,1810.8,1810.7,3.66596]
[1745751087192,3.508,1810.8,1810.7,7.38796]
[1745751087987,4.61224,1810.8,1810.7,7.38796]
[1745751088483,4.61224,1810.8,1810.7,6.2837]
[1745751088689,4.61224,1810.8,1810.7,7.388]
[1745751090189,4.61224,1810.8,1810.7,3.666]
[1745751091089,4.61224,1810.8,1810.7,1.7103]
[1745751091277,6.18404,1810.8,1810.7,1.7103]
[1745751091482,6.18404,1810.8,1810.7,2.8146]
[1745751092091,6.18404,1810.8,1810.7,6.5366]
[1745751092801,6.18404,1810.8,1810.7,5.4323]
[1745751093098,6.18404,1810.8,1810.7,1.7103]
[1745751096999,1.1043,1810.7,1810.6,4.31211]
[1745751097198,2.7662,1810.7,1810.6,3.2078]
[1745751101104,1.6619,1810.7,1810.6,3.2078]
[1745751101304,2.7662,1810.7,1810.6,3.2078]
[1745751102194,1.10448,1810.4,1810.3,5.14012]
[1745751102392,1.10448,1810.4,1810.3,6.81012]
[1745751103207,2.75196,1810.5,1810.4,1.10448]
[1745751103404,2.75196,1810.5,1810.4,2.77448]
[1745751104106,2.75196,1810.5,1810.4,6.49648]
[1745751104293,2.75196,1810.5,1810.4,5.392]
[1745751104499,6.25996,1810.5,1810.4,5.392]
[1745751105107,6.25996,1810.5,1810.4,1.67]
[1745751106210,6.25996,1810.5,1810.4,5.392]
[1745751107211,6.25996,1810.5,1810.4,1.67]
[1745751110308,6.25996,1810.5,1810.4,5.392]
[1745751110919,6.25996,1810.5,1810.4,0.5142]
[1745751111118,1.10448,1810.4,1810.3,3.2078]
[1745751111316,7.23,1810.5,1810.3,5.16132]
[1745751111512,8.33442,1810.5,1810.4,2.5613]
[1745751111919,1.10448,1810.4,1810.3,3.2078]
[1745751112217,2.81838,1810.4,1810.3,3.2078]
[1745751112618,2.81838,1810.4,1810.3,4.9128]
[1745751113118,2.81838,1810.4,1810.3,8.6348]
[1745751114013,1.10448,1810.4,1810.3,8.6348]
[1745751114921,1.10448,1810.4,1810.3,9.73934]
[1745751115818,1.10448,1810.4,1810.3,8.6348]
[1745751119125,1.10448,1810.4,1810.3,9.73934]
[1745751119327,1.10444,1810.5,1810.4,1.10448]
[1745751119519,1.10444,1810.5,1810.4,4.41668]
[1745751120022,3.508,1810.6,1810.5,1.10442]
[1745751120227,4.61237,1810.6,1810.5,1.6731]
[1745751122229,1.10442,1810.5,1810.4,0.8523]
[1745751122432,1.10442,1810.5,1810.4,2.4905]
[1745751123128,1.10442,1810.5,1810.4,3.3232]
[1745751124238,1.10442,1810.5,1810.4,7.0452]
[1745751129245,1.10442,1810.5,1810.4,8.14968]
[1745751130246,1.10442,1810.5,1810.4,7.0452]
[1745751130437,1.10442,1810.5,1810.4,8.14968]
[1745751130940,1.10442,1810.5,1810.4,7.0452]
[1745751131144,3.508,1810.6,1810.4,7.0452]
[1745751131436,1.10434,1810.7,1810.5,1.69]
[1745751131639,4.61234,1810.7,1810.6,1.10436]
[1745751132043,4.61234,1810.7,1810.6,4.31216]
[1745751132243,1.10428,1810.8,1810.7,1.1043]
[1745751132444,4.61228,1810.8,1810.7,4.4968]
[1745751133145,4.61228,1810.8,1810.7,3.3925]
[1745751133446,4.61228,1810.8,1810.7,7.1145]
[1745751134143,4.61228,1810.8,1810.7,3.3925]
[1745751137640,4.61228,1810.8,1810.7,2.5409]
[1745751137948,5.44638,1810.8,1810.7,1.7281]
[1745751138147,9.16838,1810.8,1810.7,1.7281]
[1745751138347,1.10436,1810.6,1810.5,1.6457]
[1745751138553,1.10436,1810.6,1810.5,3.3068]
[1745751139151,1.10436,1810.6,1810.5,7.0288]
[1745751140153,1.10436,1810.6,1810.5,3.3068]
[1745751140446,6.10436,1810.6,1810.5,3.3068]
[1745751140648,1.10466,1810.1,1810.0,5.84433255]
[1745751140955,1.10472,1810.0,1809.9,6.1205146]
[1745751141142,1.10472,1810.0,1809.9,0.38098748]
[1745751141143,8.21082,1810.0,1809.9,0.38098748]
[1745751141348,1.10479,1809.9,1809.8,9.79282547]
[1745751141550,5.98059,1809.9,1809.8,7.25442547]
[1745751141846,10.98059,1809.9,1809.8,7.25442547]
[1745751142255,14.70259,1809.9,1809.8,7.25442547]
[1745751142550,14.70259,1809.9,1809.8,4.65588547]
[1745751142853,14.70259,1809.9,1809.8,3.26632547]
[1745751143055,14.70259,1809.9,1809.8,1.88133547]
[1745751143348,14.70259,1809.9,1809.8,5.47e-06]
[1745751144654,14.70259,1809.9,1809.5,1.7273]
[1745751144655,1.10497,1809.6,1809.5,1.7273]
[1745751144955,4.61297,1809.6,1809.5,1.7273]
[1745751145556,1.10521,1809.2,1809.1,9.1658]
[1745751146853,1.10521,1809.2,1809.1,11.6374]
[1745751147055,4.61321,1809.3,1809.1,11.6374]
[1745751147357,4.61315,1809.3,1809.2,1.6407]
[1745751148254,4.61315,1809.3,1809.2,5.3627]
[1745751150444,3.508,1809.3,1809.2,6.46791]
[1745751150956,4.61413,1809.4,1809.2,6.46791]
[1745751151151,4.61413,1809.4,1809.3,1.5871]
[1745751151653,4.61413,1809.4,1809.3,2.69225]
[1745751151860,4.61413,1809.4,1809.3,5.90005]
[1745751152159,4.61413,1809.4,1809.3,9.62205]
[1745751152452,1.10513,1809.4,1809.3,9.62205]
[1745751152658,1.10513,1809.4,1809.3,8.5169]
[1745751154266,1.10513,1809.4,1809.3,5.3091]
[1745751154555,1.10513,1809.4,1809.3,6.1313]
[1745751156259,1.10495,1809.7,1809.5,1.105]
[1745751156454,1.10495,1809.7,1809.3,17.10198]
[1745751156455,3.547,1809.7,1809.6,4.45777]
[1745751157163,4.65191,1809.7,1809.6,3.3528]
[1745751159058,4.65191,1809.7,1809.6,4.45777]
[1745751159458,4.65191,1809.7,1809.6,3.3528]
[1745751160059,4.65191,1809.7,1809.6,4.45777]
[1745751160461,4.65191,1809.7,1809.6,3.3528]
[1745751160753,4.65191,1809.7,1809.5,4.82698]
[1745751160754,1.10497,1809.6,1809.5,3.722]
[1745751161156,1.10497,1809.6,1809.5,1.5838]
[1745751161360,2.70117,1809.6,1809.5,1.5838]
[1745751162457,2.70117,1809.6,1809.5,2.68883]
[1745751162657,1.10497,1809.6,1809.5,2.68883]
[1745751162960,3.547,1809.6,1809.5,2.68883]
[1745751163159,3.547,1809.6,1809.5,6.41083]
[1745751163961,4.65197,1809.6,1809.5,5.3058]
[1745751164163,4.65197,1809.6,1809.5,6.41083]
[1745751165064,4.65197,1809.6,1809.5,5.3058]
[1745751173266,4.65197,1809.6,1809.5,6.41083]
[1745751174466,1.10497,1809.6,1809.5,6.41083]
[1745751174667,4.65197,1809.6,1809.5,6.41083]
[1745751176557,4.65197,1809.6,1809.5,5.3058]
[1745751176769,1.10497,1809.6,1809.5,5.3058]
[1745751176971,4.65197,1809.6,1809.5,5.3058]
[1745751181275,4.65197,1809.6,1809.5,6.41083]
[1745751183783,3.547,1809.6,1809.5,6.41083]
[1745751185069,4.65197,1809.6,1809.5,6.41083]
[1745751185966,4.65197,1809.6,1809.5,5.3058]
[1745751186880,4.65197,1809.6,1809.5,3.722]
[1745751187079,1.10503,1809.5,1809.4,3.2078]
[1745751187285,3.48233,1809.5,1809.4,3.2078]
[1745751188279,3.48233,1809.5,1809.4,8.5132]
[1745751188681,10.82214878,1809.5,1809.4,8.5132]
[1745751189582,10.02254878,1809.5,1809.4,8.5132]
[1745751192584,10.02254878,1809.5,1809.4,5.3054]
[1745751193083,1.10509,1809.4,1809.3,3.2078]
[1745751193283,2.76209,1809.4,1809.3,6.00185]
[1745751194183,2.76209,1809.4,1809.3,9.72385]
[1745751194380,2.76209,1809.4,1809.3,8.6187]
[1745751195087,2.76209,1809.4,1809.3,5.4109]
[1745751195381,2.76209,1809.4,1809.3,8.6187]
[1745751195774,2.76209,1809.4,1809.3,9.72385]
[1745751195983,1.10509,1809.4,1809.3,8.6187]
[1745751196486,1.10509,1809.4,1809.3,9.72385]
[1745751197589,8.44490878,1809.4,1809.3,9.72385]
[1745751197786,8.44490878,1809.4,1809.3,8.6187]
[1745751199891,8.44490878,1809.4,1809.3,9.72385]
[1745751201094,1.10509,1809.4,1809.3,9.72385]
[1745751202593,1.10509,1809.4,1809.3,6.51605]
[1745751202895,11.97187878,1809.5,1809.4,1.10509]
[1745751203088,11.97187878,1809.5,1809.4,2.68899]
[1745751204292,11.97187878,1809.5,1809.4,6.41099]
[1745751205297,11.97187878,1809.5,1809.4,5.3059]
[1745751205895,11.97187878,1809.5,1809.4,3.722]
[1745751205896,13.54007878,1809.5,1809.4,3.722]
[1745751206092,1.10509,1809.4,1809.3,4.8883]
[1745751206292,2.67329,1809.4,1809.3,4.8883]
[1745751206702,2.67329,1809.4,1809.3,5.99345]
[1745751207200,2.67329,1809.4,1809.3,9.71545]
[1745751207701,10.01310878,1809.4,1809.3,9.71545]
[1745751209504,7.33981878,1809.4,1809.3,9.71545]
[1745751210303,6.67650021,1809.4,1809.3,9.71545]
[1745751211107,4.63205,1809.5,1809.4,1.10509]
[1745751211407,4.63205,1809.5,1809.4,2.77499]
[1745751212105,4.63205,1809.5,1809.4,5.3919]
[1745751212495,7.88305,1809.5,1809.4,5.3919]
[1745751214108,7.88305,1809.5,1809.4,1.6699]
[1745751215008,1.10515,1809.3,1809.2,2.68888]
[1745751215205,6.778,1809.5,1809.2,8.09628]
[1745751215406,1.10514,1809.4,1809.3,1.6854]
[1745751216011,1.10514,1809.4,1809.3,2.79055]
[1745751216307,1.10514,1809.4,1809.3,6.51255]
[1745751217300,1.10514,1809.4,1809.3,5.4074]
[1745751217511,1.10514,1809.4,1809.3,3.722]
[1745751217710,2.66554,1809.4,1809.3,3.722]
[1745751217910,1.10514,1809.4,1809.3,5.4343]
[1745751218209,1.10514,1809.4,1809.3,1.7123]
[1745751222212,2.73724,1809.4,1809.3,1.7123]
[1745751230616,11.93754973,1809.4,1809.3,1.7123]
[1745751231118,11.93754973,1809.4,1809.3,5.4343]
[1745751232112,11.93754973,1809.4,1809.3,1.7123]
[1745751232318,10.30544973,1809.4,1809.3,1.7123]
[1745751234805,11.04465132,1809.7,1809.3,11.02525]
[1745751235013,11.04465132,1809.7,1809.6,3.2078]
[1745751235215,12.14956132,1809.7,1809.6,3.2078]
[1745751235413,12.14956132,1809.7,1809.6,6.3829]
[1745751236420,12.14956132,1809.7,1809.6,7.48787]
[1745751236713,11.04465132,1809.7,1809.6,7.48787]
[1745751237518,16.2802468,1809.8,1809.6,7.48787]
[1745751237519,3.515,1809.8,1809.6,7.48787]
[1745751237720,4.61985,1809.8,1809.7,1.5614]
[1745751239209,6.29715,1809.8,1809.7,1.5614]
[1745751239409,2.76237,1809.7,1809.2,1.10517]
[1745751239715,1.10511,1809.4,1809.2,3.3781]
[1745751239914,3.515,1809.5,1809.3,2.76003]
[1745751240116,4.62003,1809.5,1809.4,1.6549]
[1745751240515,6.29733,1809.5,1809.4,1.6549]
[1745751243116,5.1923,1809.5,1809.2,2.8284]
[1745751243322,3.57202,1809.4,1809.2,4.453]
[1745751243521,3.57202,1809.4,1809.3,1.6246]
[1745751246329,1.10512,1809.4,1809.3,1.6246]
[1745751246526,4.62007,1809.5,1809.3,2.72975]
[1745751247028,4.62007,1809.5,1809.4,1.6142]
[1745751248829,1.10507,1809.5,1809.4,1.6142]
[1745751249026,4.62907,1809.5,1809.4,1.6142]
[1745751250131,1.10507,1809.5,1809.4,1.6142]
[1745751250330,4.62907,1809.5,1809.4,1.6142]
[1745751250629,1.10507,1809.5,1809.4,1.6142]
[1745751250829,4.62907,1809.5,1809.4,1.6142]
[1745751253632,4.62907,1809.5,1809.2,1.7232]
[1745751253633,1.10515,1809.3,1809.2,1.7232]
[1745751254431,4.62915,1809.3,1809.2,1.7232]
[1745751255033,3.524,1809.3,1809.2,4.49881]
[1745751255234,2.86062694,1809.3,1809.2,4.49881]
[1745751256130,2.86062694,1809.3,1809.2,8.22081]
[1745751257133,3.96577694,1809.3,1809.2,8.22081]
[1745751257432,2.86062694,1809.3,1809.2,8.22081]
[1745751258428,1.10514,1809.4,1809.2,7.1156]
[1745751258733,4.62914,1809.4,1809.3,1.626]
[1745751259231,4.62914,1809.4,1809.3,5.348]
[1745751260034,4.62914,1809.4,1809.3,6.45315]
[1745751260333,4.62914,1809.4,1809.3,5.348]
[1745751262236,4.62914,1809.4,1809.3,1.626]
[1745751263036,6.21944,1809.4,1809.3,1.626]
[1745751277046,2.76289,1809.3,1808.8,4.31321]
[1745751277239,1.10535,1809.0,1808.9,1.1054]
[1745751277439,4.61635,1809.0,1808.9,1.6692]
[1745751277646,4.61635,1809.0,1808.9,2.7746]
[1745751277839,4.61635,1809.0,1808.9,1.6692]
[1745751278350,4.61635,1809.0,1808.9,5.3912]
[1745751279145,5.41815,1809.0,1808.9,1.6692]
[1745751281747,4.61635,1809.0,1808.9,1.6692]
[1745751285544,1.10544,1808.9,1808.7,1.1055]
[1745751285743,1.10544,1808.9,1808.8,2.4955]
[1745751286151,1.10544,1808.9,1808.8,6.2175]
[1745751289847,1.10544,1808.9,1808.8,5.3979]
[1745751290150,1.10544,1808.9,1808.8,1.6759]
[1745751290151,2.82844,1808.9,1808.8,1.6759]
[1745751291156,2.82844,1808.9,1808.8,5.3979]
[1745751291546,1.10544,1808.9,1808.8,5.3979]
[1745751295154,1.10544,1808.9,1808.8,1.6759]
[1745751296956,4.38014,1808.9,1808.8,1.6759]
[1745751299257,3.53764,1808.9,1808.8,1.6759]
[1745751300054,2.73374,1808.9,1808.8,1.6759]
[1745751300557,1.10544,1808.9,1808.8,1.6759]
[1745751302558,2.76184,1808.9,1808.8,1.6759]
[1745751302964,1.10558,1808.6,1808.5,3.722]
[1745751303157,1.10564,1808.5,1808.4,3.2738]
[1745751303961,4.6176,1808.6,1808.4,4.37945]
[1745751304162,4.6176,1808.6,1808.5,1.583]
[1745751305262,4.6176,1808.6,1808.5,5.305]
[1745751306465,4.6176,1808.6,1808.3,4.31352]
[1745751306466,1.1057,1808.4,1808.3,3.2078]
[1745751306761,1.1057,1808.4,1808.3,4.0119]
[1745751307162,1.10567,1808.5,1808.3,8.83964]
[1745751307465,4.61759,1808.6,1808.4,1.10565]
[1745751307655,4.61759,1808.6,1808.5,0.8084]
[1745751307856,4.61759,1808.6,1808.5,2.4743]
[1745751308160,4.61759,1808.6,1808.5,6.1963]
[1745751309960,4.61758,1808.6,1808.5,6.1963]
[1745751310260,3.512,1808.7,1808.6,1.10556]
[1745751310461,3.512,1808.7,1808.6,3.60346]
[1745751312257,4.61752,1808.7,1808.6,3.60346]
[1745751317866,3.512,1808.7,1808.6,3.60346]
[1745751320865,4.61752,1808.7,1808.6,3.60346]
[1745751321468,4.61752,1808.7,1808.6,2.4979]
[1745751323067,4.61752,1808.7,1808.6,3.60348]
[1745751323262,4.61752,1808.7,1808.6,2.4979]
[1745751324668,4.61752,1808.7,1808.6,3.60348]
[1745751327269,6.27092,1808.7,1808.6,3.60348]
[1745751329470,7.12082,1808.7,1808.6,3.60348]
[1745751329969,7.12082,1808.7,1808.6,2.4979]
[1745751330672,6.27092,1808.7,1808.6,2.4979]
[1745751336476,4.61752,1808.7,1808.6,2.4979]
[1745751339475,4.61752,1808.7,1808.6,3.60348]
[1745751339676,10.29955104,1808.8,1808.6,2.4979]
[1745751339881,13.81155104,1808.8,1808.7,3.54782]
[1745751340179,13.81155104,1808.8,1808.7,7.26982]
[1745751341382,4.6175,1808.8,1808.7,7.26982]
[1745751343979,12.40185104,1808.9,1808.7,6.1643]
[1745751344179,9.19405104,1809.0,1808.9,1.1054]
[1745751344378,9.19405104,1809.0,1808.9,3.6508]
[1745751345177,9.19405104,1809.0,1808.9,7.3728]
[1745751345683,9.19405104,1809.0,1808.9,12.3728]
[1745751346486,3.622992,1809.0,1808.9,18.3308]
[1745751347489,2.324092,1809.0,1808.9,18.3308]
[1745751347888,3.512,1809.4,1809.3,1.10515]
[1745751348090,4.61709,1809.4,1809.3,1.10515]
[1745751348481,4.61709,1809.4,1809.3,3.56765]
[1745751349174,4.61709,1809.4,1809.3,7.28965]
[1745751349487,3.512,1809.4,1809.3,7.28965]
[1745751350885,3.512,1809.4,1809.3,8.10875]
[1745751353302,3.512,1809.4,1809.3,11.31655]
[1745751357805,3.511,1809.6,1809.5,1.10503]
[1745751358103,3.511,1809.6,1809.5,4.31283]
[1745751358293,3.511,1809.6,1809.5,8.03483]
[1745751358803,3.511,1809.6,1809.5,9.75523]
[1745751359014,4.61597,1809.6,1809.5,9.75523]
[1745751359208,6.31157,1809.6,1809.5,9.75523]
[1745751359505,6.31157,1809.6,1809.5,6.9298]
[1745751359804,6.31157,1809.6,1809.5,3.722]
[1745751360205,1.10503,1809.5,1809.3,1.10512]
[1745751360506,0.8147,1809.4,1809.3,2.70492]
[1745751360703,0.8147,1809.4,1809.3,43.50492]
[1745751360903,2.4827,1809.4,1809.3,43.50492]
[1745751361204,2.4827,1809.4,1809.3,2.70492]
[1745751361403,3.324,1809.4,1809.3,2.70492]
[1745751362908,4.42909,1809.4,1809.3,2.70492]
[1745751363101,8.324,1809.4,1809.2,45.11297]
[1745751363305,1.6211,1809.3,1809.2,45.11297]
[1745751363806,1.6211,1809.3,1809.2,46.80207]
[1745751364106,5.1321,1809.3,1809.2,43.59427]
[1745751364310,5.1321,1809.3,1809.2,47.31627]
[1745751364805,5.1321,1809.3,1809.2,50.52407]
[1745751365008,5.1321,1809.3,1809.2,47.31627]
[1745751365904,6.23725,1809.3,1809.2,47.31627]
[1745751366208,6.23725,1809.3,1809.2,46.2111]
[1745751366408,6.23725,1809.3,1809.2,47.31631]
[1745751366608,6.23725,1809.3,1809.2,46.2111]
[1745751368304,6.23725,1809.3,1809.2,47.31631]
[1745751368711,3.511,1809.3,1809.2,47.31631]
[1745751368909,3.511,1809.3,1809.2,48.09701]
[1745751369099,4.61615,1809.3,1809.2,48.09701]
[1745751369911,4.61615,1809.3,1809.2,5.4111]
[1745751370213,6.31455,1809.3,1809.2,1.6891]
[1745751370404,6.31455,1809.3,1809.2,42.4891]
[1745751371609,5.97008,1809.7,1809.2,45.6969]
[1745751371915,1.10508,1809.5,1809.3,3.47093]